Cogmind - Beta 17 @@@ ROGUE MODE // 2026.08.10 @ 16:49:15 Player: C-Log Result: Destroyed by P-70 Sage with Tesla Rifle Performance ------------- Evolutions (5) 2500 Regions Visited (6) 1200 Robots Destroyed (96) 480 Value Destroyed (2613) 2613 Prototype IDs (7) 140 Alien Tech Used (0) 0 Bonus (102) 102 TOTAL SCORE: 7035 Bonus ------- High Alert Combat Kills 103 Friendly Fire -1 Cogmind --------- Core Integrity 0/1000 Matter 15/300 Energy 20/100 System Corruption 7% Temperature Cool (0) Movement Flying (45) Location -5/Factory Parts ------- > --- POWER (2) -------- (None) > --- PROPULSION (4) --- Gyrokinetic Inverter Gyrokinetic Inverter Field Propulsion Drive > --- UTILITY (8) ------ Enhanced Optical Array Improved Signal Interpreter Improved Signal Interpreter > --- WEAPON (3) ------- (None) > --- INVENTORY (5) ---- Improved Deuterium Engine Antigrav System Medium Storage Unit Kinecellerator Compact Ion Cannon Peak State ------------ > --- POWER ------------ Improved Deuterium Engine > --- PROPULSION ------- Light Treads Armored Treads Medium Treads > --- UTILITY ---------- Large Storage Unit Improved Signal Interpreter Advanced Targeting Computer Transmission Jammer Medium Reactive Plating Shock Absorption System Hacking Suite Field Recycling Unit > --- WEAPON ----------- Heavy Missile Launcher Heavy Missile Launcher Impact Mace > --- INVENTORY -------- Improved Deuterium Engine Light Treads Gravmag System Improved Heat Sink Improved Sensor Array Improved Signal Interpreter Core Analyzer Medium Reactive Plating Component Analysis Suite Plasma Cannon Heavy Rocket Launcher Heavy Rocket Launcher Heavy Rocket Launcher Impact Mace [Rating: 54] Favorites ----------- Power Ion Engine Engine Ion Engine Power Core Fusion Compressor Propulsion Light Treads Treads Light Treads Leg Armored Leg Wheel Compact Wheel Hover Unit Gravmag System Flight Unit Field Propulsion Drive Utility Improved Signal Interpreter Device Sensor Array Storage Large Storage Unit Processor Improved Signal Interpreter Hackware Hacking Suite Protection Hardened Medium Armor Plating Weapon Heavy Particle Gun Energy Gun Heavy Particle Gun Energy Cannon Beam Cannon Ballistic Gun Subdweller Machine Gun Ballistic Cannon Heavy Flak Cannon Launcher Heavy Rocket Launcher Special Weapon Mining Laser Impact Weapon Impact Mace Build | -11 -10 -10 -8 -7 -6 -5 ------- Run | Yrd Mat Sub Mat Fac Fac Fac Slots Evolved 10 | . . . 4 2 2 2 Power 1 | . . . . . . 1 Propulsion 2 | . . . 1 . . 1 Utility 6 | . . . 3 1 2 . Weapon 1 | . . . . 1 . . Parts Attached 89 | 7 7 5 22 20 16 12 Power 6 | 1 . 1 . 2 1 1 Engine 4 | 1 . 1 . 1 1 . Core 2 | . . . . 1 . 1 Reactor . | . . . . . . . Propulsion 16 | 2 . 1 5 3 2 3 Treads 9 | 2 . . 5 2 . . Leg 1 | . . . . . 1 . Wheel 1 | . . 1 . . . . Hover 4 | . . . . 1 1 2 Flight 1 | . . . . . . 1 Utility 37 | 2 2 1 10 8 10 4 Device 15 | 1 1 . 1 6 4 2 Storage 5 | 1 1 . 2 . 1 . Processor 10 | . . . 4 1 3 2 Hackware 1 | . . . . 1 . . Protection 6 | . . 1 3 . 2 . Artifact . | . . . . . . . Weapon 30 | 2 5 2 7 7 3 4 Energy Gun 4 | . . . 4 . . . Energy Cannon 6 | . 3 . . . . 3 Ballistic Gun 6 | 2 . 1 1 2 . . Ballistic Cannon 1 | . . . . . 1 . Launcher 10 | . 1 1 2 4 2 . Special Weapon 2 | . 1 . . . . 1 Impact Weapon 1 | . . . . 1 . . Slashing Weapon . | . . . . . . . Piercing Weapon . | . . . . . . . Special Melee Weapon . | . . . . . . . Unidentified Prototypes 7 | . . . 1 3 1 2 Corrupted Parts 1 | . . . 1 . . . System Corruption 4 | . . . 4 . . . Parts Lost 27 | . . 4 2 2 13 6 Power 2 | . . 1 . . . 1 Propulsion 8 | . . 2 . 1 4 1 Utility 7 | . . . 1 1 3 2 Weapon 10 | . . 1 1 . 6 2 Highest Loss Streak 8 | . . 4 1 1 8 2 To Critical Strikes . | . . . . . . . Average Backups 7 | 2 8 8 4 10 10 4 Power . | . 1 . . 1 1 1 Propulsion 1 | 1 1 . . 2 1 . Utility 2 | . 2 2 1 3 4 2 Weapon 3 | . 3 4 3 3 4 1 Tool/Special . | . . . . . . . Unused Backups 22 | . 5 4 1 6 4 2 Power 2 | . 1 . . . 1 . Propulsion 2 | . 1 . . . . 1 Utility 7 | . 2 2 . 1 1 1 Weapon 10 | . . 2 1 5 2 . Tool/Special 1 | . 1 . . . . . Average Slot Usage (%) 84 | . 100 86 82 99 84 40 Engine 7 | . 14 13 9 6 4 . Treads 17 | . 28 15 16 22 13 . Wheel 1 | . . 5 3 . . . Hover 1 | . . . . . 1 7 Device 12 | . 14 8 8 15 12 11 Storage 5 | . 14 8 2 7 4 . Processor 12 | . . . 14 15 17 12 Hackware 1 | . . . . 1 4 . Protection 4 | . . 5 9 4 4 . Energy Gun 3 | . . . 4 7 . . Energy Cannon 3 | . 19 9 . . . 3 Ballistic Gun 1 | . 1 2 5 . . . Launcher 7 | . 4 11 5 10 10 . Impact Weapon 1 | . . . . 3 4 . Peak Build Rating 54 | 7 8 9 27 47 54 48 Average Rating 27 | 6 7 8 19 38 44 34 On Entrance 15 | . 7 8 8 25 46 17 Avg Prop Armor Cover (%) 3 | . . . 4 . 4 1 Naked Turns 1 | . . . . . 1 . Heaviest Build 79 | 13 22 30 43 58 79 17 Greatest Support 68 | 40 40 40 60 68 68 22 Greatest Overweight (x) 16 | 1 . 1 2 1 16 5 Average Overweight (x) . | . . . . . . . Largest Inventory Capacity 15 | 8 10 10 15 15 15 5 Average Capacity 10 | 7 8 7 7 15 13 5 Most Carried 15 | 5 10 10 6 15 14 5 Average Carried 7 | 2 8 7 4 10 10 4 Final Capacity 15 | 8 10 5 15 15 5 5 Final Carried 15 | 5 10 5 6 15 5 5 Class Distribution -------------------- 67% | Mutant 13% | Skirmisher 8% | Scavenger-Mutant 5% | Subdweller-Mutant Dominant Class ---------------- Mutant | -10/Materials Mutant | -10/Subcaves Scavenger-Mutant | -8/Materials Mutant | -7/Factory Mutant | -6/Factory Mutant | -5/Factory Resources | -11 -10 -10 -8 -7 -6 -5 ----------- Run | Yrd Mat Sub Mat Fac Fac Fac Matter Collected 2096 | 294 150 262 430 704 253 3 Remotely . | . . . . . . . Salvage Created 2957 | 105 276 246 583 1193 554 . Parts 162 | 8 34 18 35 50 17 . Haulers Intercepted 6 | . 2 . 2 2 . . Recyclers Shooed 6 | . 1 . . 2 3 . Parts Field Recycled 28 | . . . . 22 6 . Retrieved Matter 319 | . . . . 255 64 . Parts Self-Destructed 13 | . . 13 . . . . Prevented . | . . . . . . . Parts Restored . | . . . . . . . Kills | -11 -10 -10 -8 -7 -6 -5 ------- Run | Yrd Mat Sub Mat Fac Fac Fac Combat Hostiles Destroyed 51 | . 7 10 11 15 8 . Melee 2 | . . . . 2 . . Guns 6 | . . 2 1 3 . . Cannons 7 | . 4 3 . . . . AOE 32 | . 3 5 9 7 8 . Classes Destroyed 13 | 2 6 1 2 2 . . Worker 10 | . 1 . 3 . 6 . Builder 8 | . 1 . . 4 3 . Tunneler 6 | 2 1 . 1 1 1 . Hauler 6 | . 2 . 2 2 . . Recycler 12 | 1 . . 1 8 2 . Operator 1 | . . . . 1 . . Watcher 2 | . 2 . . . . . Swarmer 11 | . 3 3 4 1 . . Grunt 22 | . 4 2 3 6 7 . Sentry 4 | . . . 3 . 1 . Hunter 5 | . . . 1 4 . . Programmer 4 | . . . . 4 . . Subdweller 5 | . . 5 . . . . Best Kill Streak 6 | 1 5 3 5 5 6 . Combat Bots Only 5 | . 3 3 5 3 4 . Max Kills in Single Turn 4 | 1 3 2 4 3 4 . Gunslinging . | . . . . . . . Exploded 4 | . 3 2 4 1 4 . Melee 1 | . . . . 1 . . Uniques/NPCs Destroyed . | . . . . . . . Combat | -11 -10 -10 -8 -7 -6 -5 -------- Run | Yrd Mat Sub Mat Fac Fac Fac Hostile Shots Fired 514 | . 16 42 76 86 162 132 Missed 187 | . 5 6 22 32 60 62 Hits 327 | . 11 36 54 54 102 70 Projectile 327 | . 11 36 54 54 102 70 AOE 5 | . . . . . 5 . Critical Strikes 11 | . . 1 2 2 1 5 Damage Taken 6679 | . 179 878 776 1099 2156 1591 Core 2003 | . 12 219 42 82 646 1002 Absorbed by Shields . | . . . . . . . Ignored by Resistances 92 | . . . . . 92 . Core Remaining (%) 62 | 100 . 7 92 88 24 . Volleys Fired 223 | 12 39 41 42 58 16 15 Largest 2 | 2 2 2 2 2 2 1 Hottest 120 | 40 120 120 110 110 83 85 Shots Fired 331 | 24 55 59 53 97 28 15 Gun 119 | 24 . 7 34 54 . . Cannon 80 | . 38 26 . . 3 13 Launcher 88 | . 4 11 15 33 25 . Special 44 | . 13 15 4 10 . 2 Kinetic 46 | 24 . 7 12 . 3 . Thermal 181 | . 51 41 10 64 . 15 Explosive 65 | . 4 11 . 25 25 . Electromagnetic 39 | . . . 31 8 . . Robot Hit Streak 14 | 7 9 7 14 9 6 6 Robot Miss Streak 3 | 2 1 2 3 2 2 . Penetration Max . | . . . . . . . Secondary Targets . | . . . . . . . Shots Hit Robots 181 | 18 18 30 35 58 21 1 Core Hits 144 | 7 18 18 24 41 35 1 Critical Kills 2 | . . 1 . 1 . . Critical Parts Destroyed 5 | . . . . 1 4 . Critical Strikes 10 | . . 1 1 4 4 . Burn 2 | . . . . 2 . . Destroy 1 | . . 1 . . . . Corrupt 1 | . . . 1 . . . Smash 6 | . . . . 2 4 . Melee Attacks 40 | . . . . 33 7 . Impact 40 | . . . . 33 7 . Slashing . | . . . . . . . Piercing . | . . . . . . . Sneak Attacks 10 | . . . . 4 6 . Combat Hostiles . | . . . . . . . Follow-up Attacks . | . . . . . . . Damage Inflicted 9255 | 136 734 959 1615 3122 2643 46 Guns 1491 | 136 . 138 452 765 . . Cannons 735 | . 315 313 . . 78 29 Explosions 5847 | . 419 508 1163 1694 2063 . Melee 1165 | . . . . 663 502 . Ramming 17 | . . . . . . 17 Kinetic 1170 | 136 . 138 818 . 78 . Thermal 1758 | . 468 313 183 765 . 29 Explosive 4396 | . 266 508 . 1559 2063 . Electromagnetic 749 | . . . 614 135 . . Impact 1165 | . . . . 663 502 . Slashing . | . . . . . . . Piercing . | . . . . . . . Highest Corruption 7 | . . . 7 3 . 7 Average Corruption 3 | . . . 5 2 . 4 Corruption Purged . | . . . . . . . Corruption Blocked . | . . . . . . . Effects 57 | . . . 26 29 . 2 Message Errors 16 | . . . 10 5 . 1 Matter Fused 14 | . . . 6 8 . . Heat Flow Errors 7 | . . . 3 4 . . Energy Discharges 9 | . . . 4 5 . . Parts Rejected 1 | . . . . . . 1 Data Loss (minor) 5 | . . . 2 3 . . Data Loss (major) 2 | . . . . 2 . . Misfires 2 | . . . 1 1 . . Alerts 1 | . . . . 1 . . Overload Shots . | . . . . . . . Overflow Damage 931 | . 7 . 49 276 599 . Projectiles . | . . . . . . . Explosions 322 | . 7 . 49 49 217 . Melee 609 | . . . . 227 382 . Knockbacks 13 | . . . . 4 9 . Impact 9 | . . . . 4 5 . Kinetic 3 | . . . . . 3 . Secondary 1 | . . . . . 1 . Self-Inflicted Damage 813 | . 59 118 23 272 334 7 Shots 22 | . 1 4 2 7 8 . Rammed 4 | . . . . . . 4 Targets Rammed 4 | . . . . . . 4 Kicked . | . . . . . . . Crushed . | . . . . . . . Highest Temperature 430 | . 360 41 430 257 182 54 Average Temperature 72 | . 95 27 74 56 59 14 Received Heat Transfer 1128 | . 63 225 252 243 285 60 Effects 4 | . 3 . 1 . . . Shutdowns 1 | . . . 1 . . . Energy Bleed 3 | . 3 . . . . . Siege Activations . | . . . . . . . Martial Activations . | . . . . . . . Shielding Activations . | . . . . . . . Robots Disrupted . | . . . . . . . Combat Hostiles . | . . . . . . . Robots Corrupted 12 | . . . 2 4 6 . Combat Hostiles 2 | . . . 1 1 . . Parts Fried 13 | . . . 1 7 5 . Impact Corruptions 24 | . . . . 10 14 . Robots Melted 2 | . . . . 2 . . Combat Hostiles 2 | . . . . 2 . . Parts Melted 8 | . 1 2 . 5 . . Heat Transferred 3519 | . 816 666 372 1628 . 37 Parts Sabotaged . | . . . . . . . Parts Stolen . | . . . . . . . Parts Stripped . | . . . . . . . Power Chain Reactions 2 | . . . 2 . . . Alert | -11 -10 -10 -8 -7 -6 -5 ------- Run | Yrd Mat Sub Mat Fac Fac Fac Maximum Alert Level 2 | . . . 1 2 2 . Low Security (%) 58 | 100 100 . 52 55 . 100 Level 1 24 | . . . 47 5 68 . Level 2 17 | . . . . 38 31 . Level 3 . | . . . . . . . Level 4 . | . . . . . . . Level 5 . | . . . . . . . High Security . | . . . . . . . Max Security . | . . . . . . . Peak Influence 575 | 5 194 . 278 575 480 177 Initial 277 | . . . . 80 277 177 Average 183 | . 72 . 141 239 370 54 Influence Increases 2771 | 15 351 140 491 955 649 170 Destroy 0b10 Robot/C 920 | . 140 100 220 300 160 . Destroy 0b10 Robot/NC 225 | 15 35 . 35 80 60 . Destroy Leader 236 | . 38 10 54 104 30 . Successful Hack 72 | . . . 32 5 35 . Select Force Hacks 30 | . 30 . . . . . Disable Machine 495 | . 75 . 30 240 135 15 Destroy Structure 463 | . 33 . 75 196 139 20 Lose Combat Pursuer 330 | . . 30 45 30 90 135 Influence Decreases 2771 | 15 238 253 314 565 854 532 Entered New Map 627 | . . 55 . 97 290 185 Time Decay 1890 | 15 238 160 294 448 434 301 Lost Part 254 | . . 38 20 20 130 46 Squads Dispatched 21 | . 1 . 2 9 5 4 Investigation 10 | . 1 . 2 4 2 1 Extermination 7 | . . . . 4 1 2 Reinforcement 4 | . . . . 1 2 1 Assault . | . . . . . . . Garrison . | . . . . . . . Intercept . | . . . . . . . Searches Triggered . | . . . . . . . Construction Impeded 1 | . . . . . 1 . Haulers Reinforced 1 | . . . . 1 . . Active Scanning Responses . | . . . . . . . Cargo Convoy Interrupts . | . . . . . . . Stealth | -11 -10 -10 -8 -7 -6 -5 --------- Run | Yrd Mat Sub Mat Fac Fac Fac Distress Signals 6 | . 1 . 2 1 1 1 Communications Jammed . | . . . . . . . Distress Signals . | . . . . . . . Times Spotted 83 | . 9 10 15 18 17 14 Peak Tracking Total 6 | . 3 5 5 3 5 6 Tactical Retreats 15 | . . 1 2 2 3 7 Traps | -11 -10 -10 -8 -7 -6 -5 ------- Run | Yrd Mat Sub Mat Fac Fac Fac Traps Triggered 4 | . . . 2 1 1 . Indirectly 1 | . . . . 1 . . Trap Hack Attempts . | . . . . . . . Triggered . | . . . . . . . Disarmed . | . . . . . . . Reprogrammed . | . . . . . . . Reused . | . . . . . . . Traps Extracted . | . . . . . . . Installed . | . . . . . . . Triggered . | . . . . . . . Machines | -11 -10 -10 -8 -7 -6 -5 ---------- Run | Yrd Mat Sub Mat Fac Fac Fac Machines Disabled 33 | . 5 . 2 16 9 1 Max in Single Turn 4 | . 3 . 1 2 4 1 Garrison Access 1 | . . . . . 1 . Machines Repaired . | . . . . . . . Machines Dismantled 1 | . . . . . . 1 Machines Sabotaged . | . . . . . . . Overloaded Fab Kills . | . . . . . . . Hacking | -11 -10 -10 -8 -7 -6 -5 --------- Run | Yrd Mat Sub Mat Fac Fac Fac Machines Accessed 29 | . 3 . 9 9 5 3 Terminals 16 | . 2 . 6 5 2 1 Fabricators 3 | . . . . 1 1 1 Repair Stations 1 | . . . . . 1 . Recycling Units 6 | . 1 . 2 2 . 1 Scanalyzers 2 | . . . 1 1 . . Garrison Access 1 | . . . . . 1 . Total Hacks 69 | . 8 . 23 22 10 6 Successful 27 | . 4 . 13 5 4 1 Failed 41 | . 4 . 9 17 6 5 Catastrophic 12 | . 2 . 3 3 3 1 Database Lockouts 1 | . . . 1 . . . Manual 32 | . 4 . 14 8 4 2 Terminals 39 | . 4 . 16 13 4 2 Fabricators 6 | . . . . 2 2 2 Repair Stations 3 | . . . . . 3 . Recycling Units 15 | . 4 . 5 4 . 2 Scanalyzers 5 | . . . 2 3 . . Garrison Access 1 | . . . . . 1 . Terminal Hacks 11 | . 2 . 7 1 1 . Robot Analysis 2 | . 1 . 1 . . . Open DSF 1 | . . . . 1 . . Level Access Points 1 | . . . 1 . . . Branch Access Points 3 | . . . 2 . 1 . Machine Index 1 | . . . 1 . . . Terminal Index 1 | . . . 1 . . . Dispatch Records 1 | . 1 . . . . . Zone Layout 1 | . . . 1 . . . Fabricator Hacks 3 | . . . . . 2 1 Load Schematic 2 | . . . . . 1 1 Build 1 | . . . . . 1 . Repair Station Hacks . | . . . . . . . Recycling Unit Hacks 5 | . 1 . 2 2 . . Retrieve Matter 3 | . . . 1 2 . . Retrieve Components 2 | . 1 . 1 . . . Scanalyzer 3 | . . . 1 2 . . Insert Component 1 | . . . . 1 . . Analyze 1 | . . . . 1 . . Retrieve Study 1 | . . . 1 . . . Garrison Access Hacks 1 | . . . . . 1 . Seal Access 1 | . . . . . 1 . Unauthorized Hacks 4 | . 1 . 3 . . . Terminals 3 | . . . 3 . . . Botnet 3 | . . . 3 . . . Fabricators . | . . . . . . . Repair Stations . | . . . . . . . Recycling Units 1 | . 1 . . . . . Tunnel 1 | . 1 . . . . . Scanalyzers . | . . . . . . . Garrison Access . | . . . . . . . Data Cores Recovered . | . . . . . . . Used . | . . . . . . . Hacking Detections 25 | . 3 . 6 9 4 3 Full Trace Events 9 | . . . 2 4 2 1 Feedback Events . | . . . . . . . Feedback Blocked . | . . . . . . . Robot Schematics Acquired . | . . . . . . . Robots Built . | . . . . . . . Authchips . | . . . . . . . Time . | . . . . . . . Total Robot Build Rating . | . . . . . . . Part Schematics Acquired 1 | . . . . 1 . . Parts Built 1 | . . . . . 1 . Authchips . | . . . . . . . Time 28 | . . . . . 28 . Total Part Build Rating 4 | . . . . . 4 . Part Studies Acquired 1 | . . . 1 . . . Parts Repaired . | . . . . . . . Time . | . . . . . . . Parts Recycled . | . . . . . . . Recycled Matter . | . . . . . . . Retrieved Matter 43 | . . . . 43 . . Retrieved Components 5 | . 4 . 1 . . . Parts Scanalyzed 1 | . . . . 1 . . Part Schematics Acquired 1 | . . . . 1 . . Parts Damaged . | . . . . . . . Bothacking | -11 -10 -10 -8 -7 -6 -5 ------------ Run | Yrd Mat Sub Mat Fac Fac Fac Used RIF Installer . | . . . . . . . Robots Hacked . | . . . . . . . Non-combat . | . . . . . . . Combat . | . . . . . . . Robot Hacks Applied . | . . . . . . . Relay Couplers Released . | . . . . . . . Fabnet Peak Effective % . | . . . . . . . Robots Rewired . | . . . . . . . Allies Hacked . | . . . . . . . Hacks Repelled . | . . . . . . . Allies | -11 -10 -10 -8 -7 -6 -5 -------- Run | Yrd Mat Sub Mat Fac Fac Fac Total Allies . | . . . . . . . Largest Group . | . . . . . . . Highest-Rated Group . | . . . . . . . Highest-Rated Ally . | . . . . . . . Total Orders . | . . . . . . . Ally Attacks . | . . . . . . . Total Damage . | . . . . . . . Kills . | . . . . . . . Allies Corrupted . | . . . . . . . Allies Melted . | . . . . . . . Intel | -11 -10 -10 -8 -7 -6 -5 ------- Run | Yrd Mat Sub Mat Fac Fac Fac Active Infowar (turns) 6286 | 138 847 347 1573 2108 585 688 Optics 691 | . . . . . 85 606 Sensors 4076 | . 293 347 1573 1325 390 148 IFF 690 | . . . . . 95 595 Seismic 692 | 138 554 . . . . . Jamming 997 | . . . . 877 100 20 Robot Analysis Total 2 | . 1 . 1 . . . Derelict Logs Recovered . | . . . . . . . Drone Launches . | . . . . . . . Drone Recoveries . | . . . . . . . Exploration | -11 -10 -10 -8 -7 -6 -5 ------------- Run | Yrd Mat Sub Mat Fac Fac Fac Turns Passed 7366 | 205 848 582 1635 2108 1076 912 Spaces Moved 3677 | 99 413 277 639 985 577 687 Core 68 | 5 . . . . 62 1 Treads 2424 | 94 413 126 508 985 298 . Legs . | . . . . . . . Wheels 282 | . . 151 131 . . . Hover 902 | . . . . . 217 685 Flight 1 | . . . . . . 1 Fastest Speed 45 | 50 160 115 115 163 50 45 Average Speed 139 | 155 160 135 152 164 151 67 Slowest Speed 850 | 160 160 160 240 225 850 300 Overloaded Moves . | . . . . . . . Propulsion Burnouts . | . . . . . . . Robots Hopped . | . . . . . . . Potential Cave-ins 2 | . . . . . . 2 Cave-ins Triggered . | . . . . . . . Exploration Rate (%) 26 | 4 64 18 42 23 16 20 Regions Visited 6 Branch Regions 1 Pre-discovered Areas 1 | . 1 . . . . . Known Exits Taken 2 | . . . 1 1 . . Unknown Exits Taken 4 | 1 1 1 . . 1 . Scrap Searched . | . . . . . . . Spaces Dug 36 | . 11 . 3 10 . 12 Terrain Destroyed 588 | . 30 48 74 231 193 12 Melee 10 | . . . . 10 . . Projectile 26 | . 11 . 3 . . 12 AOE 552 | . 19 48 71 221 193 . Terrain Rammed . | . . . . . . . Walls Destroyed . | . . . . . . . Machines Disabled . | . . . . . . . Actions | -11 -10 -10 -8 -7 -6 -5 --------- Run | Yrd Mat Sub Mat Fac Fac Fac Total 5413 | 127 520 389 1230 1303 735 1109 Wait 1205 | 5 35 45 499 140 100 381 Move 3671 | 98 412 276 638 984 576 687 Hop . | . . . . . . . Pick Up 58 | 5 12 3 6 24 7 1 Fast Attach 53 | 7 2 2 13 10 8 11 Attach 23 | . . 2 3 5 11 2 Detach 4 | . . . . 2 1 1 Swap 61 | . 10 14 15 21 1 . Drop 66 | . 10 5 14 26 8 3 Fire 223 | 12 39 41 42 58 16 15 Melee 40 | . . . . 33 7 . Ram 4 | . . . . . . 4 Kick . | . . . . . . . Crush . | . . . . . . . Escape Stasis . | . . . . . . . Rewire . | . . . . . . . Trap . | . . . . . . . Miscellaneous 5 | . . 1 . . . 4 Route ------- -11/Scrapyard -10/Materials (discovered 3 exits: [*Mat] / [*Min] / [*Sub]) -10/Subcaves -8/Materials (discovered 3 exits: *Fac x3) -7/Factory -6/Factory (discovered 3 exits: *Fac / Low x2) -5/Factory History --------- Turn | Location | Event 9 | -11/Scrapyard | Discovered new exit (range 16) 206 | -11/Scrapyard | Entered Materials 304 | -10/Materials | Build established: Mutant 418 | -10/Materials | Discovered new exit (range 14) 558 | -10/Materials | Discovered new exit (range 6) 806 | -10/Materials | Derelicts attacked the area 903 | -10/Materials | Discovered new exit (range 16) 1054 | -10/Materials | Entered Subcaves 1055 | -10/Subcaves | Approached by a straggling Scientist 1161 | -10/Subcaves | Shifting Twisted Machinery released Sub. Machine Gun 1161 | -10/Subcaves | Shifting Twisted Machinery released Flamer 1193 | -10/Subcaves | Shifting Twisted Machinery released Sub. Shrapnel Launcher 1193 | -10/Subcaves | Shifting Twisted Machinery released Sub. Monowheel 1384 | -10/Subcaves | Core integrity fell below 50% 1396 | -10/Subcaves | Core integrity fell below 20% 1416 | -10/Subcaves | Lost 4 parts (1p2n1w) 1562 | -10/Subcaves | Discovered new exit (range 7) 1636 | -10/Subcaves | Entered Materials 1636 | -8/Materials | Evolved 4 slots: Propulsion x1, Utility x3 2134 | -8/Materials | Build established: Subdweller-Mutant 2271 | -8/Materials | Identified exit to Factory 2587 | -8/Materials | Central database locked down 2839 | -8/Materials | Build established: Mutant 3271 | -8/Materials | Entered Factory 3271 | -7/Factory | Evolved 2 slots: Utility x1, Weapon x1 3578 | -7/Factory | Build established: Skirmisher 4602 | -7/Factory | Build established: Mutant 4893 | -7/Factory | Discovered new exit (range 6) 4901 | -7/Factory | Identified exit to Factory 5379 | -7/Factory | Entered another Factory area 5379 | -6/Factory | Evolved 2 slots: Utility x2 5435 | -6/Factory | Fabricated Hvy. Missile Launcher (x1) 5589 | -6/Factory | Identified exit to Lower Caves 5896 | -6/Factory | Lost 3 parts (2n1u) 6260 | -6/Factory | Released all parts (10) 6263 | -6/Factory | Core integrity fell below 50% 6273 | -6/Factory | Spotted B-75 Beast 6291 | -6/Factory | Lost 8 parts (2n1u5w) 6291 | -6/Factory | Allied Derelicts emerged from ambush trap array 6336 | -6/Factory | Discovered new exit (range 16) 6340 | -6/Factory | Lost 3 allies 6455 | -6/Factory | Entered another Factory area 6455 | -5/Factory | Evolved 2 slots: Power x1, Propulsion x1 6984 | -5/Factory | Spotted B-75 Beast 7321 | -5/Factory | Core integrity fell below 50% 7355 | -5/Factory | Core integrity fell below 20% 7367 | -5/Factory | Destroyed by P-70 Sage with Tesla Rifle Last Messages --------------- 07186_ U-05 Engineer builds a Wall. 07186_ Penetrated by Slug. 07186_ Imp. Plasma Cutter destroyed. 07186_ Knocked back. 07241_ U-05 Engineer builds a Wall. 07246_ The unstable cave ceiling collapses. 07253_ W-25 Informer sends out distress signal. 07281_ Phase Cannon destroyed. 07282_ Fusion Compressor destroyed. 07284_ System corrupted: Gyrokinetic Inverter rejected. 07284_ Acquired Antigrav System. 07286_ Power Conduit explodes. 07286_ Acquired Gyrokinetic Inverter. 07288_ U-05 Engineer lays Concrete. 07317_ Slammed into P-70 Sage. 07332_ Imp. Sensor Array destroyed. 07336_ IFF Parser destroyed. 07356_ 7XSU:OJY8|VQK,2OYVVY>M#%DQF G&8A3N 07362_ Acquired Field Propulsion Drive. Map ----- +----------------------------------------------------+ | ?????????????????????????????????????????????????? | | ?????????????????????????????????????????????????? | | ?????????????????????????????????????????????????? | | ?????????????????????????????????????????????????? | | ?????????????????????????????????????????????????? | | ?????????????????????????????????????????????????? | | ?????????????????????????????????????????????????? | | ?????????????????????????????????????????????????? | | ?????????????????????????????????????????????????? | | ?????????????????????????????????????????????????? | | ?????????????????????????????????????????????????? | | ?????????????????????????????????????????????????? | | ?????????????????????????????????????????????????? | | ?????????????????????????????????????????????????? | | ?????????????????????????????????????????????????? | | ?????????????????????????????????????????????????? | | ???????????????????????????????????#?????????????? | | ?????????????????#+##+############ ###???????????? | | ?????????????????# ????????????? | | ?????????????????# ?????????????? | | ?????????????????+ //! ???????????????? | | ?????????????????? /!! ????????????????? | | ???????????????????? /!! ??????????????????? | | ?????????????????????# #???????????????????? | | ?????????????????????# #???????????????????? | | ?????????????????????# =@! #???????????????????? | | ?????????????????????# !! #???????????????????? | | ?????????????????????# =! #???????????????????? | | ????????????????####?# #???????????????????? | | ???????????????##T ###p #???????????????????? | | ???????######### p #???????????????????? | | ??????# # p p #???????????????????? | | ??????# """ # #???????????????????? | | ??????# """ # ###########???????????????????? | | ??????# """ # #?????????????????????????????? | | ??????# + #?????????????????????????????? | | ??????# # #?????????????????????????????? | | ??????# "" "" # #?????????????????????????????? | | ??????# ""S"" # #?????????????????????????????? | | ??????# """" # #??????????????????????????? ?? | | ??????########## #??????????????????????????? | | ???????????????# #?????????????????????????? | | ???????????????# #?????????????????????????? | | ???????????????# #????????????????????????? | | ???????????????# #???????????????? ?????? | | ???????????????# #???????????????? ?????? | | ???????????????# #???????????"""?? ??????? | | ???????????????# #??? ??? ?? #????? ???? | | ????############ #### ? ######/#### | | ????# "?" # | +----------------------------------------------------+ Best States ------------- Heat Dissipation 56 Energy Generation 25 Energy Capacity 310 Matter Stores 300 Matter Capacity 300 Sight Range 22 Robot Scan Range 15 Terrain Scan Density 10 Jamming Range 12 Armor Coverage 950 Resistance: KI 30 Resistance: EX 25 Evasion (%) 53 Targeting Accuracy 8 Target Analysis 5 Core Analysis 6 Recoil Reduction 3 Offensive Hacking 10 Item Schematics ----------------- Hvy. Missile Launcher | -7/Factory | Scanalyzed Robot Schematics ------------------ None Fabricated ------------ Hvy. Missile Launcher | x1 | -6/Factory Repaired ---------- Nothing Studied --------- Arm. Treads | -8/Materials | Hacked Alien Tech Used ----------------- None Achievements -------------- Just What I Needed Throw Away The Key Challenges ------------ None Game ------ Seed PlasmaElectronThermoblaster Manual? 0 Play Time 01:38:47 Cumulative 22.7 hours Start 2026.08.10 @ 15:04:12 End 2026.08.10 @ 16:49:15 Sessions 1 Manual Loads 0 Difficulty Rogue Special Mode None Game No. 18 Rogue 14 Adventurer 4 Explorer 0 Win Type - Total 0 Types 0/0/0/0/0/0/0/0/0/0 Lore% 24 Gallery% 22 Achievement% 22 Wizard Run 0 Options --------- Layout 1 ASCII 0 Keyboard 0 Movement Mouse Keybinds 0 Fullscreen 1 Font 32/SmallcapsGlow Map View 50x35 Zoom Use 0% Tactical HUD 1 Map Filters NONE Filters NONE Steam 1 RUN: 37db1867-4644-4ebc-80dd-a1a0af7ce871